[Event "Prague Festival-Futures 2022"]
[Site "Prague"]
[Date "2022.06.09"]
[Round "2.4"]
[White "Zelbova, Lada"]
[Black "Kuru, Atilla"]
[Result "1/2-1/2"]
[ECO "C02"]
[WhiteElo "1967"]
[BlackElo "2023"]
[Annotator "TA"]
[PlyCount "132"]
[EventDate "2022.06.07"]
[EventType "tourn"]
[EventCountry "CZE"]
[SourceTitle "playchess.com"]
[Source "ChessBase"]
[SourceQuality "1"]
[TimeControl "40/5400+30:1800+30"]

{[%evp 19,132,0,0,-6,0,-37,-40,-84,-83,-69,-83,-79,-75,-77,-39,-51,-28,-72,29,24,23,-83,-81,-81,0,-51,0,-57,-13,-31,-30,-19,-28,-26,12,25,45,0,70,43,69,-45,-27,-162,-171,-223,-138,-112,-116,-266,-112,-225,-150,-168,-38,-45,-95,-395,-56,-38,-11,-8,-8,-8,0,0,0,0,0,0,0,0,0,-251,0,0,0,0,0,0,0,0,0,0,0,0,0,0,0,0,0,-1622,0,0,0,0,0,0,0,0,0,0,0,0,0,0,0,0,0,0,0,0,0,0,0]} 1. e4 {[%emt 0:00:03]} e6 {[%emt 1:31:00]} 2. d4 {[%emt 0:00:08]} d5 {[%emt 0:00:00]} 3. e5 {[%emt 0:00:06]} c5 {[%emt 0:00:00]} 4. c3 {[%emt 0:00:04]} Qb6 {[%emt 0:00:00]} 5. a3 {[%emt 0:02:23]} Nc6 {[%emt 0:00:00]} 6. Nf3 {[%emt 0:00:05]} c4 {[%emt 0:00:00]} 7. Nbd2 {[%emt 0:04:10]} Na5 {[%emt 0:00:00]} 8. Be2 {[%emt 0:03:35]} Bd7 {[%emt 0:00:00]} 9. O-O {[%emt 0:00:54]} Ne7 {[%emt 0:00:00]} 10. Rb1 {[%emt 0:01:54]} Qc7 {[%emt 0:00:00]} 11. Qc2 {[%emt 0:04:03] C02: French: Advance Variation.} Nc8 {[%emt 0:00:00]} 12. Bd1 {[%emt 0:02:20]} Nb6 {[%emt 0:00:00] ...Ba4 is the strong threat.} 13. b3 {[%emt 0:01:40] Against Ba4. Black is slightly better.} cxb3 {[%emt 0:00:00]} 14. Nxb3 {[%emt 0:00:43]} Nac4 {[%emt 0:00:00]} 15. Ra1 {[%emt 0:08:00]} Rc8 {[%emt 0:00:00] [#]} 16. Ng5 $146 {[%emt 0:24:33]} ({Predecessor:} 16. Nbd2 Na4 17. Qb3 Na5 18. Qc2 Nxc3 19. Kh1 Ba4 {0-1 (19) Vaval,A (1368)-Akshit,J (1604) Kalyan 2019}) 16... Ba4 {[%emt 0:00:00]} 17. Qe2 {[%emt 0:06:22]} g6 {[%emt 0:00:00]} 18. f4 {[%emt 0:02:45][%cal Of4f5]} a6 {[%emt 0:00:00]} (18... Qd7 $17) 19. f5 $1 $11 {[%emt 0:14:27]} exf5 {[%emt 0:00:00]} 20. Qf3 {[%emt 0:01:19]} (20. Bf4 $11) 20... h6 $17 {[%emt 0:00:00]} 21. Nh3 {[%emt 0:00:15]} Bd7 {[%emt 0:00:00]} ({Better is} 21... Bg7 $17) 22. g4 {[%emt 0:02:02]} (22. Nf4 $11) 22... Be7 {[%emt 0:00:00]} (22... Bg7 $15) 23. Bc2 {[%emt 0:00:52] [#]} ({White should try} 23. a4 $1 $11) 23... Nxe5 $1 {[%emt 0:00:00]} 24. dxe5 {[%emt 0:03:31][%cal Rg4f5]} Qxc3 {[%emt 0:00:00]} 25. e6 $1 {[%emt 0:04:07]} Qxf3 $40 {[%emt 0:00:00][%mdl 128] White needs to defend precisely.} ({Much less strong is} 25... Bxe6 26. Qxc3 Rxc3 27. Bb2 Rxh3 28. Bxh8 $14) 26. exd7+ {[%emt 0:00:17]} Kxd7 {[%emt 0:00:00]} 27. Rxf3 {[%emt 0:01:37] The board is on fire.} Rxc2 {[%emt 0:00:00]} 28. gxf5 {[%emt 0:01:17]} gxf5 {[%emt 0:00:00]} (28... g5 $11) 29. Bf4 {[%emt 0:01:23]} (29. Nf2 $5 {[%cal Rb3d4]}) 29... Rg8+ {[%emt 0:00:00]} 30. Rg3 {[%emt 0:01:23]} (30. Bg3 $14) 30... Rxg3+ {[%emt 0:00:00]} 31. Bxg3 {[%emt 0:01:32]} (31. hxg3 $11 {and White has nothing to worry.} Rb2 32. Nc1) 31... Rc3 $19 {[%emt 0:00:00]} 32. Na5 {[%emt 0:05:07]} (32. Nc1 {was called for.}) 32... Rxa3 {[%emt 0:00:00]} 33. Rxa3 {[%emt 0:01:13]} Bxa3 {[%emt 0:00:00]} 34. Kf1 {[%emt 0:01:25]} (34. Nxb7 $17 Nc4 35. Be1) 34... Bb4 {[%emt 0:00:00]} (34... Nc4 $19 {has better winning chances.} 35. Nb3 a5) 35. Nb3 {[%emt 0:00:19]} (35. Nxb7 $17 a5 36. Be1) 35... Nc4 {[%emt 0:00:00] Strongly threatening ...a5.} 36. Nf4 {[%emt 0:00:37]} Nd2+ {[%emt 0:00:00]} (36... a5 $19 {And now ...a4 would win.} 37. Nxd5 a4) 37. Nxd2 $15 {[%emt 0:00:06]} Bxd2 {[%emt 0:00:00]} 38. Ke2 $2 {[%emt 0:00:38][%mdl 8192]} (38. Nxd5 $17 {was the only defense.} b5 39. Ke2) 38... Ba5 $2 {[%emt 0:00:00]} (38... Bxf4 $19 39. Bxf4 h5) 39. Nxd5 {[%emt 0:01:14]} Ke6 {[%emt 0:00:00]} 40. Nf4+ {[%emt 0:00:00]} Ke5 {[%emt 0:00:00] With the idea ...Ke4.} 41. Kd3 {[%emt 0:05:45]} Be1 {[%emt 0:00:00]} 42. Bxe1 {[%emt 0:07:22]} Kxf4 $11 {[%emt 0:00:00][%mdl 4096] Endgame KB-KP} 43. Bd2+ {[%emt 0:02:37]} Kf3 {[%emt 0:00:00]} 44. Bxh6 {[%emt 0:01:24]} f4 {[%emt 0:00:00]} 45. h4 {[%emt 0:14:13]} Kg4 {[%emt 0:00:00]} 46. Ke2 {[%emt 0:00:18][%mdl 8192]} (46. Ke4 $1 $11 {and White stays safe.}) 46... f6 $2 {[%emt 0:00:00]} ({Black should play} 46... b5 $19 {Threatens to win with ...b4.} 47. h5 f3+ 48. Kf2 Kxh5) 47. h5 {[%emt 0:01:28]} Kxh5 {[%emt 0:00:00]} 48. Bxf4 {[%emt 0:00:04] KB-K3P} Kg4 {[%emt 0:00:00]} 49. Bc7 {[%emt 0:00:52]} b5 {[%emt 0:00:00]} 50. Bd8 {[%emt 0:01:40]} f5 {[%emt 0:00:00]} 51. Ba5 $1 {[%emt 0:00:37]} Kf4 {[%emt 0:00:00]} 52. Kd3 {[%emt 0:00:44]} Ke5 {[%emt 0:00:00]} 53. Bc3+ {[%emt 0:00:40]} Kd5 {[%emt 0:00:00]} 54. Bb4 {[%emt 0:00:10]} (54. Bd2 Kc5 55. Kc3 a5 $19) 54... f4 {[%emt 0:00:00]} 55. Bd2 $2 {[%emt 0:00:56][%mdl 8192] [#]} (55. Ke2 $11) 55... Ke5 $2 {[%emt 0:00:00]} (55... f3 $1 $19 56. Be1 Kc5) 56. Bc3+ {[%emt 0:00:24] The position is equal.} Kf5 {[%emt 0:00:00]} 57. Be1 {[%emt 0:00:37]} Kg4 {[%emt 0:00:00]} 58. Ke4 {[%emt 0:00:31]} f3 {[%emt 0:00:00][%cal Ob5b4]} 59. Ke3 {[%emt 0:00:07]} a5 {[%emt 0:00:00]} 60. Bxa5 {[%emt 0:00:28] KB-KPP} Kg3 {[%emt 0:00:00] ( -> ...f2)} 61. Be1+ {[%emt 0:00:32]} Kg2 {[%emt 0:00:00]} 62. Kd3 {[%emt 0:00:36]} Kf1 {[%emt 0:00:00]} 63. Bh4 {[%emt 0:00:07]} f2 {[%emt 0:00:00]} 64. Kc3 {[%emt 0:00:12]} Ke2 {[%emt 0:00:00]} 65. Bxf2 $1 {[%emt 0:00:04]} b4+ {[%emt 0:00:00]} 66. Kxb4 {[%emt 0:00:09]} Kxf2 {[%emt 1:02:30] Weighted Error Value: White=0.64/Black=0.58} 1/2-1/2

[Event "Prague Festival-Futures 2022"]
[Site "Prague"]
[Date "2022.06.09"]
[Round "2.5"]
[White "Balint, Peter"]
[Black "Bokhnak, Timofey"]
[Result "0-1"]
[ECO "B13"]
[WhiteElo "2097"]
[BlackElo "2060"]
[Annotator "TA"]
[PlyCount "92"]
[EventDate "2022.06.07"]
[EventType "tourn"]
[EventCountry "CZE"]
[SourceTitle "playchess.com"]
[Source "ChessBase"]
[SourceQuality "1"]
[TimeControl "40/5400+30:1800+30"]

{[%evp 10,92,17,0,29,-35,62,-18,-26,-43,-37,-109,-122,-113,-2,-114,-104,-138,-125,-174,-134,-128,-125,-150,-120,-247,-250,-201,-130,-291,-162,-327,-321,-313,-322,-319,-328,-316,-341,-319,-335,-334,-262,-263,-266,-267,-247,-248,-237,-414,-390,-432,-470,-556,-529,-644,-759,-753,-758,-780,-643,-591,-579,-590,-590,-703,-662,-673,-671,-992,-983,-1525,-1520,-1795,-1614,-29976,-29973,-29984,-29985,-29987,-29988,-29989,-29990,-29994,-29992]} 1. e4 {[%emt 0:00:03]} c6 {[%emt 0:00:31]} 2. d4 {[%emt 0:00:05]} d5 {[%emt 0:00:03]} 3. exd5 {[%emt 0:00:07]} cxd5 {[%emt 0:00:03]} 4. c4 {[%emt 0:00:25]} Nf6 {[%emt 0:00:18]} 5. Nc3 {[%emt 0:00:09]} Nc6 {[%emt 0:00:05]} 6. Bg5 {[%emt 0:00:38]} a6 {[%emt 0:02:52] B13: Caro-Kann: Exchange Variation and Panov-Botvinnik Attack.} 7. a3 {[%emt 0:12:18]} (7. Nf3 $11) 7... Be6 {[%emt 0:00:55]} (7... dxc4 $15 8. Bxc4 Qxd4 9. Qxd4 Nxd4) 8. Nf3 {[%emt 0:03:15]} (8. Be2 $14) 8... g6 $11 {[%emt 0:00:50] [#] The position is equal.} 9. Rc1 $146 {[%emt 0:05:00]} ({Predecessor:} 9. Bxf6 exf6 10. cxd5 Bxd5 11. Rc1 Bh6 12. Qe2+ Kf8 13. Nxd5 Qxd5 14. Qc4 Qe4+ 15. Be2 Bxc1 16. Qxc1 Kg7 17. d5 Rhe8 18. Qe3 Qb1+ {0-1 (18) Garcia Blanco,O (2324)-Kosteniuk,A (2474) Chess.com INT 2021}) 9... Bg7 {[%emt 0:01:57]} (9... dxc4 10. Bxf6 exf6 11. d5 $16) 10. Be2 {[%emt 0:05:14]} ({White has to play} 10. cxd5 $1 $15 Nxd5 11. Bd3) 10... dxc4 $17 {[%emt 0:20:17]} 11. O-O {[%emt 0:03:26]} Nd5 {[%emt 0:02:29]} ({Better is} 11... Na5 $17 {aiming for ...Nb3.} 12. Bxf6 Bxf6) 12. Ne4 {[%emt 0:01:22]} (12. Bxc4 $11 {keeps the balance.} h6 13. Bxd5 Bxd5 14. Be3 (14. Nxd5 hxg5 15. Ne3 Nxd4 $11)) 12... b5 {[%emt 0:05:46]} 13. Nc5 {[%emt 0:01:14]} Bg4 {[%emt 0:05:52]} 14. Re1 {[%emt 0:01:31]} (14. b3 $17 {keeps fighting.} c3 15. Be3) 14... h6 {[%emt 0:01:30]} 15. Be3 {[%emt 0:13:21]} O-O {[%emt 0:03:27]} 16. h3 {[%emt 0:01:39]} Bf5 {[%emt 0:00:57]} 17. a4 {[%emt 0:07:51]} (17. b3 $17) 17... Qb6 $19 {[%emt 0:01:03]} 18. Qd2 {[%emt 0:02:20]} Kh7 {[%emt 0:00:22]} 19. Nh4 $2 {[%emt 0:03:16] This move loses the game for White.} (19. b3 $17 c3 20. Rxc3) 19... Bc8 {[%emt 0:00:35]} (19... Rad8 $142 20. a5 Qa7 21. Nxf5 gxf5 22. Bxc4 bxc4 23. Rxc4 Nxe3 24. fxe3 {[#]} Nxd4 $1 {[%mdl 512]}) 20. Ra1 $2 {[%emt 0:00:40]} (20. b3) 20... Ra7 {[%emt 0:04:30]} 21. Bf3 {[%emt 0:02:28]} Rd8 {[%emt 0:01:32]} 22. Bxd5 {[%emt 0:06:16]} Rxd5 {[%emt 0:02:28]} 23. Nf3 {[%emt 0:00:05]} e5 {[%emt 0:03:42][%cal Be7e5,Be5d4,Bd4d3][%mdl 32]} 24. Ne4 {[%emt 0:00:46][%cal Od4e5]} Nxd4 {[%emt 0:01:40]} (24... exd4 25. Bxh6 Bxh6 26. Nf6+ Kg7 27. Ne8+ Kh7 28. Nf6+ Kg7 29. Ne8+ Kh7 30. Nf6+ $11) 25. axb5 {[%emt 0:01:40]} axb5 {[%emt 0:01:41]} (25... Qxb5 26. Nc3 Qb7 27. Nxd5 Qxd5 28. Nxd4 exd4 29. Ra5 $19) 26. Rxa7 {[%emt 0:00:30]} Qxa7 {[%emt 0:00:01]} 27. Nxd4 {[%emt 0:00:24]} exd4 {[%emt 0:01:33]} 28. Bxh6 {[%emt 0:00:06][%cal Od2f4]} Qd7 {[%emt 0:10:16]} ({Weaker is} 28... Bxh6 29. Nf6+ Kg7 30. Ne8+ Kh7 31. Nf6+ Kg7 32. Ne8+ Kh7 33. Nf6+ $11) 29. Bf4 {[%emt 0:06:43]} (29. Ng5+ {was necessary.} Kg8 30. Bxg7 Kxg7 31. Nf3) 29... Bb7 {[%emt 0:01:33][%cal Oc4c3]} 30. Ng5+ {[%emt 0:06:20]} Kg8 {[%emt 0:00:02]} 31. Qe2 {[%emt 0:00:14]} Bc6 {[%emt 0:02:34]} 32. Ne4 {[%emt 0:02:44]} d3 {[%emt 0:03:58]} 33. Qd2 {[%emt 0:00:30]} Rd4 {[%emt 0:02:07]} 34. Ng5 {[%emt 0:01:42]} Qf5 {[%emt 0:00:43]} 35. Be3 {[%emt 0:00:47]} Rd8 {[%emt 0:01:15]} 36. Ra1 {[%emt 0:01:28]} Bf6 {[%emt 0:05:38]} 37. Ra7 {[%emt 0:02:46]} Rd7 {[%emt 0:01:45][%cal Bd8d7,Bd7e7,Be7e4][%mdl 32]} 38. Ra6 {[%emt 0:01:05]} Bb7 {[%emt 0:01:16] A strong pair of Bishops.} 39. Ra1 {[%emt 0:02:20]} Re7 {[%emt 0:00:18][%cal Oe7e3] [#] Strongly threatening ...Rxe3!} 40. Nf3 {[%emt 0:00:00]} Bxf3 {[%emt 0:00:00]} 41. gxf3 {[%emt 0:01:11]} Qxf3 {[%emt 0:00:56]} 42. Re1 {[%emt 0:02:38]} Qxh3 {[%emt 0:00:32] Black mates.} 43. Qa5 {[%emt 0:02:33]} Qg4+ {[%emt 0:00:48]} 44. Kf1 {[%emt 0:00:05]} Re4 {[%emt 0:00:51]} 45. Qa8+ {[%emt 0:01:03]} Kh7 {[%emt 0:00:14]} 46. Rc1 {[%emt 0:00:57]} Qf3 {[%emt 0:00:51] Weighted Error Value: White=0.68/Black=0.22 (precise)} 0-1

[Event "Prague Festival-Futures 2022"]
[Site "Prague"]
[Date "2022.06.10"]
[Round "3.1"]
[White "Kovalskyi, Roman"]
[Black "Balint, Peter"]
[Result "1/2-1/2"]
[ECO "B40"]
[WhiteElo "2039"]
[BlackElo "2097"]
[Annotator "NA COMBH"]
[PlyCount "96"]
[EventDate "2022.06.07"]
[EventType "tourn"]
[EventCountry "CZE"]
[SourceTitle "playchess.com"]
[Source "ChessBase"]
[SourceQuality "1"]
[TimeControl "40/5400+30:1800+30"]

1. e4 {[%emt 0:00:05]} c5 {[%emt 0:00:07]} 2. Nf3 {[%emt 0:00:05]} e6 {[%emt 0:00:05]} 3. g3 {[%emt 0:00:05]} Nc6 {[%emt 0:00:29]} 4. d3 {[%emt 0:00:08]} d6 {[%emt 0:01:51]} 5. Bg2 {[%emt 0:00:17]} Nge7 {[%emt 0:02:31]} 6. b3 {[%emt 0:06:31]} g6 {[%emt 0:03:44]} 7. Bb2 {[%emt 0:01:18]} e5 {[%emt 0:00:52]} 8. O-O {[%emt 0:00:42]} Bg7 {[%emt 0:00:17]} 9. Nbd2 {[%emt 0:02:50]} O-O {[%emt 0:01:38]} 10. Ne1 {[%emt 0:02:16]} f5 {[%emt 0:10:46]} 11. f4 {[%emt 0:01:53]} Be6 {[%emt 0:04:30]} 12. c4 {[%emt 0:04:18]} Qc7 {[%emt 0:04:47]} 13. Nc2 {[%emt 0:03:33]} Rfe8 {[%emt 0:11:57]} 14. Nf3 {[%emt 0:05:59]} h6 {[%emt 0:09:14]} 15. Ne3 {[%emt 0:13:07]} Nd4 {[%emt 0:03:31]} 16. fxe5 {[%emt 0:55:23]} dxe5 {[%emt 0:02:33]} 17. Nd5 {[%emt 0:00:00]} Bxd5 {[%emt 0:05:28]} 18. cxd5 {[%emt 0:00:00]} fxe4 {[%emt 0:07:42]} 19. dxe4 {[%emt 0:00:00]} Qd7 {[%emt 0:01:19]} 20. Rf2 {[%emt 0:00:00]} Nc8 {[%emt 0:03:38]} 21. Qf1 {[%emt 0:00:00]} Nd6 {[%emt 0:01:18]} 22. Bh3 {[%emt 0:00:00]} Qe7 {[%emt 0:00:20]} 23. Qd3 {[%emt 0:00:00]} Rf8 {[%emt 0:01:57]} 24. Raf1 {[%emt 0:00:00]} Kh7 {[%emt 0:03:50]} 25. Bxd4 {[%emt 0:00:00]} cxd4 {[%emt 0:00:45]} 26. Rc2 {[%emt 0:00:00]} a6 {[%emt 0:01:44]} 27. Be6 {[%emt 0:00:00]} Nb5 {[%emt 0:00:21]} 28. h4 {[%emt 0:00:20]} Nc3 {[%emt 0:02:26]} 29. Rh2 {[%emt 0:00:06]} Rf6 {[%emt 0:07:49]} 30. Re1 {[%emt 0:03:22]} Raf8 {[%emt 0:02:25]} 31. Bg4 {[%emt 0:02:56]} Kg8 {[%emt 0:02:00]} 32. h5 {[%emt 0:00:36]} g5 {[%emt 0:00:12]} 33. Bf5 {[%emt 0:00:28]} Qd6 {[%emt 0:00:30]} 34. Rf2 {[%emt 0:00:29]} Rxf5 {[%emt 0:02:25]} 35. exf5 {[%emt 0:00:01]} Qxd5 {[%emt 0:00:09]} 36. Nd2 {[%emt 0:00:24]} Bf6 {[%emt 0:02:15]} 37. Ne4 {[%emt 0:01:08]} Nxe4 {[%emt 0:00:17]} 38. Qxe4 {[%emt 0:00:30]} Qxe4 {[%emt 0:00:13]} 39. Rxe4 {[%emt 0:00:01]} Rc8 {[%emt 0:00:08]} 40. Rd2 {[%emt 0:00:00]} Rc3 {[%emt 0:00:00]} 41. g4 {[%emt 0:06:44]} Kf7 {[%emt 0:02:17]} 42. Kf1 {[%emt 0:00:46]} b5 {[%emt 0:00:52]} 43. Ke2 {[%emt 0:02:32]} b4 {[%emt 0:00:42]} 44. Kd1 {[%emt 0:13:22]} Kf8 {[%emt 0:10:00]} 45. Rde2 {[%emt 0:07:05]} Rc5 {[%emt 0:01:55]} 46. Rc2 {[%emt 0:00:30]} Rc3 {[%emt 0:00:06]} 47. Rce2 {[%emt 0:00:04]} Rc5 {[%emt 0:00:03]} 48. Rc2 {[%emt 0:00:05]} Rc3 {[%emt 0:00:15]} 1/2-1/2

[Event "Prague Festival-Futures 2022"]
[Site "Prague"]
[Date "2022.06.10"]
[Round "3.2"]
[White "Kuru, Atilla"]
[Black "Peglau, Charis"]
[Result "1-0"]
[ECO "B10"]
[WhiteElo "2023"]
[BlackElo "2008"]
[Annotator "TA"]
[PlyCount "61"]
[EventDate "2022.06.07"]
[EventType "tourn"]
[EventCountry "CZE"]
[SourceTitle "playchess.com"]
[Source "ChessBase"]
[SourceQuality "1"]
[TimeControl "40/5400+30:1800+30"]

{[%evp 9,61,-6,19,20,30,27,25,29,38,43,47,41,68,63,67,55,74,57,116,110,103,57,60,67,79,61,103,66,79,68,321,81,438,437,680,388,648,377,460,462,936,936,926,873,2700,2623,29981,29982,29981,1089,1042,1047,1014,1009]} 1. e4 {[%emt 0:00:04]} c6 {[%emt 0:00:00]} 2. Nf3 {[%emt 0:00:06][%cal Bg1f3,Bf3e1,Be1d3][%mdl 32]} d5 {[%emt 0:00:00]} 3. d3 {[%emt 0:00:05]} dxe4 {[%emt 0:00:21]} 4. dxe4 {[%emt 0:00:05]} Qxd1+ {[%emt 0:00:14]} 5. Kxd1 {[%emt 0:00:05]} Bg4 {[%emt 0:00:59]} 6. Be2 {[%emt 0:00:07] B10: Caro-Kann: 2 d3 and 2 c4.} Nd7 {[%emt 0:01:02]} 7. Ne1 {[%emt 0:00:07]} Bxe2+ {[%emt 0:01:06]} 8. Kxe2 {[%emt 0:00:02] White has an edge.} e5 {[%emt 0:04:15]} 9. Nd3 {[%emt 0:00:15]} f6 {[%emt 0:02:37]} 10. Be3 {[%emt 0:00:09]} O-O-O {[%emt 0:06:47]} 11. Nd2 {[%emt 0:00:11] [#]} (11. Bxa7 b6 $17) 11... h5 $146 {[%emt 0:05:17]} ({Predecessor:} 11... b6 12. a4 Kb7 13. a5 b5 14. a6+ Ka8 15. Nb3 Nb6 16. Rhd1 Ne7 17. Ndc5 Rc8 {1-0 (25) Hovhannisyan,R (2642)-Piliposyan,R (2199) Chess.com INT 2020}) 12. a4 {[%emt 0:00:14]} ({Of course not} 12. Bxa7 b6 $15) 12... a6 {[%emt 0:08:50]} 13. b4 {[%emt 0:00:19][%cal Ob4b5] White is more active.} Nh6 {[%emt 0:01:36]} (13... f5 $14) 14. f3 {[%emt 0:00:25]} Be7 {[%emt 0:03:54]} 15. Rhb1 {[%emt 0:00:12]} (15. b5 $16) 15... Kc7 {[%emt 0:06:28]} 16. b5 {[%emt 0:03:25]} Nf7 {[%emt 0:01:29] Black is now going downhill.} 17. c4 {[%emt 0:01:16][%cal Bc2c4,Bc4c5][%mdl 32]} g5 {[%emt 0:02:40]} 18. a5 {[%emt 0:02:17]} Ra8 {[%emt 0:16:22]} 19. Bb6+ {[%emt 0:00:57]} Nxb6 $4 {[%emt 0:02:23][%mdl 8192]} (19... Kc8 $14) 20. bxc6 $2 {[%emt 0:00:57]} (20. axb6+ $18 {and the rest is easy.} Kd7 21. bxa6 Rxa6 22. Rxa6 bxa6 23. Nb3) 20... bxc6 $2 {[%emt 0:09:24][%mdl 8192]} 21. axb6+ $18 {[%emt 0:00:19]} Kb7 {[%emt 0:00:09]} (21... Kb8 $142 22. Nb3 Nd8) 22. c5 {[%emt 0:00:10] [#] And now Nc4 would win.} a5 $2 {[%emt 0:04:18]} (22... Rhb8 23. Nc4 Kc8) 23. Ra4 {[%emt 0:00:02]} Nd8 {[%emt 0:03:07]} 24. Nc4 {[%emt 0:00:09]} Ne6 {[%emt 0:07:17]} (24... Bf8 $142 25. Rd1 Kc8 26. Nxa5 Rg8 27. Nxe5 Bxc5) 25. Nxa5+ {[%emt 0:00:08]} Rxa5 {[%emt 0:00:06]} 26. Rxa5 {[%emt 0:00:04] [#] Intending Ra7+ and mate.} Nd4+ {[%emt 0:00:26]} 27. Kf1 {[%emt 0:00:31] Ra7+ would kill now.} Ra8 {[%emt 0:01:09] Inhibits Ra7+.} 28. Rxa8 {[%emt 0:00:14]} Kxa8 {[%emt 0:00:05]} 29. b7+ {[%emt 0:00:12]} (29. Ra1+ $142 Kb8 30. Ra7 Nc2 31. Rxe7 g4 32. Rf7 Kc8 33. fxg4 hxg4 34. Rxf6) 29... Kb8 {[%emt 0:00:04]} 30. Nb4 {[%emt 0:00:06] White threatens Na6+ and mate.} Kxb7 {[%emt 0:00:55]} 31. Nd5+ {[%emt 0:00:02] Weighted Error Value: White=0.58/Black=1.04} 1-0